Cogmind - Beta 16 @@@ ROGUE MODE // 2025.10.24 @ 19:17:33 Player: CowMind Result: Destroyed by S-10 Pest with Light Assault Rifle Performance ------------- Evolutions (1) 500 Regions Visited (4) 800 Robots Destroyed (65) 325 Value Destroyed (2063) 2063 Prototype IDs (6) 120 Alien Tech Used (0) 0 Bonus (533) 533 TOTAL SCORE: 4341 Bonus ------- High Alert Combat Kills 267 Follower Combat Kills 110 Entered Garrisons 200 Friendly Fire -44 Cogmind --------- Core Integrity 0/400 Matter 294/300 Energy 99/100 System Corruption 11% Temperature Cool (0) Movement Core (50) Location -9/Garrison Parts ------- > --- POWER (1) -------- (None) > --- PROPULSION (2) --- (None) > --- UTILITY (3) ------ (None) > --- WEAPON (3) ------- (None) > --- INVENTORY (5) ---- Advanced Beam Cannon Hammer Peak State ------------ > --- POWER ------------ Cooled Ion Engine > --- PROPULSION ------- Aluminum Leg Improved Aluminum Leg > --- UTILITY ---------- Visual Processing Unit Improved Targeting Computer Improved Targeting Computer > --- WEAPON ----------- Improved Medium Laser Advanced Beam Cannon Improved Assault Rifle > --- INVENTORY -------- Improved Heat Sink Huge Storage Unit Medium Armor Plating Improved EM Shotgun EMP Blaster [Rating: 22] Favorites ----------- Power Light Ion Engine Engine Light Ion Engine Propulsion Aluminum Leg Leg Aluminum Leg Utility Improved Targeting Computer Storage Huge Storage Unit Processor Improved Targeting Computer Protection Medium Armor Plating Weapon EMP Blaster Energy Gun Small Laser Energy Cannon Advanced Beam Cannon Ballistic Gun Improved Assault Rifle Ballistic Cannon Light Cannon Launcher EMP Blaster Build | -11 -10 -9 -9 -9 ------- Run | Yrd Mat Mat Sto Gar Slots Evolved 2 | . . 2 . . Power . | . . . . . Propulsion . | . . . . . Utility 1 | . . 1 . . Weapon 1 | . . 1 . . Parts Attached 26 | 4 3 2 15 2 Power 4 | 1 . . 3 . Engine 4 | 1 . . 3 . Core . | . . . . . Reactor . | . . . . . Propulsion 5 | 2 . . 3 . Treads . | . . . . . Leg 5 | 2 . . 3 . Wheel . | . . . . . Hover . | . . . . . Flight . | . . . . . Utility 5 | . 2 1 . 2 Device . | . . . . . Storage 1 | . . . . 1 Processor 3 | . 2 1 . . Hackware . | . . . . . Protection 1 | . . . . 1 Artifact . | . . . . . Weapon 12 | 1 1 1 9 . Energy Gun 4 | . 1 . 3 . Energy Cannon 1 | . . . 1 . Ballistic Gun 4 | 1 . . 3 . Ballistic Cannon 1 | . . . 1 . Launcher 2 | . . 1 1 . Special Weapon . | . . . . . Impact Weapon . | . . . . . Slashing Weapon . | . . . . . Piercing Weapon . | . . . . . Special Melee Weapon . | . . . . . Unidentified Prototypes 6 | . . . 6 . Parts Lost 11 | . . . 4 7 Power . | . . . . . Propulsion 4 | . . . 2 2 Utility 1 | . . . . 1 Weapon 6 | . . . 2 4 Highest Loss Streak 6 | . . . 1 6 To Critical Strikes . | . . . . . Average Backups 4 | 3 5 4 4 2 Power . | . 1 1 . . Propulsion . | 1 . . . . Utility 1 | . 1 1 2 . Weapon 1 | 1 1 1 1 2 Tool/Special . | . . . . . Unused Backups 5 | . 2 1 . 2 Power . | . . . . . Propulsion 1 | . 1 . . . Utility 2 | . 1 . . 1 Weapon 2 | . . 1 . 1 Tool/Special . | . . . . . Average Slot Usage (%) 94 | . 96 99 97 79 Engine 11 | . 14 11 11 10 Leg 21 | . 28 22 19 20 Processor 29 | . 26 33 33 22 Energy Gun 9 | . 13 11 5 12 Energy Cannon 2 | . . . 2 9 Ballistic Gun 11 | . 14 11 16 2 Launcher 6 | . . 10 6 2 Peak Build Rating 22 | 4 9 13 22 22 Average Rating 14 | 3 8 12 17 16 On Entrance 9 | . 4 9 13 22 Avg Prop Armor Cover (%) . | . . . . . Naked Turns 27 | . . . . 27 Heaviest Build 19 | 5 6 10 18 19 Greatest Support 23 | 20 20 20 23 23 Greatest Overweight (x) 1 | . . . . 1 Average Overweight (x) . | . . . . . Largest Inventory Capacity 25 | 5 5 5 5 25 Average Capacity 5 | 5 5 5 5 5 Most Carried 5 | 5 5 5 5 5 Average Carried 4 | 4 4 4 4 4 Final Capacity 5 | 5 5 5 5 5 Final Carried 5 | 5 5 5 5 2 Class Distribution -------------------- 55% | Gunner 26% | Mutant 17% | Bomber Dominant Class ---------------- Mutant | -10/Materials Gunner | -9/Materials Gunner | -9/Storage Mutant | -9/Garrison Resources | -11 -10 -9 -9 -9 ----------- Run | Yrd Mat Mat Sto Gar Matter Collected 1033 | 208 28 185 522 90 Remotely . | . . . . . Salvage Created 2468 | . 28 488 1557 395 Parts 158 | . 3 39 98 18 Haulers Intercepted 5 | . . 1 4 . Recyclers Shooed 4 | . . 2 2 . Parts Field Recycled . | . . . . . Retrieved Matter . | . . . . . Parts Self-Destructed . | . . . . . Prevented . | . . . . . Parts Restored . | . . . . . Kills | -11 -10 -9 -9 -9 ------- Run | Yrd Mat Mat Sto Gar Combat Hostiles Destroyed 50 | . . 11 30 9 Guns 19 | . . 8 9 2 Cannons 6 | . . . 4 2 AOE 25 | . . 3 17 5 Classes Destroyed 11 | . 1 4 6 . Worker 4 | . . . 4 . Builder 3 | . . . 3 . Hauler 5 | . . 1 4 . Operator 1 | . . . 1 . Watcher 2 | . 1 1 . . Swarmer 9 | . . 3 3 3 Grunt 24 | . . 5 15 4 Brawler 2 | . . . 1 1 Duelist 2 | . . . 1 1 Protector 1 | . . . 1 . Sentry 12 | . . 3 9 . Best Kill Streak 11 | . 1 3 11 3 Combat Bots Only 9 | . . 3 9 3 Max Kills in Single Turn 5 | . 1 2 5 2 Gunslinging 1 | . . 1 . . Exploded 4 | . . 2 4 2 Melee . | . . . . . Uniques/NPCs Destroyed . | . . . . . Combat | -11 -10 -9 -9 -9 -------- Run | Yrd Mat Mat Sto Gar Hostile Shots Fired 219 | . . 47 81 91 Missed 78 | . . 17 33 28 Hits 141 | . . 30 48 63 Melee 6 | . . . . 6 Projectile 135 | . . 30 48 57 Critical Strikes 4 | . . . 3 1 Damage Taken 1932 | . . 415 698 819 Core 402 | . . 51 94 257 Absorbed by Shields . | . . . . . Core Remaining (%) 100 | 100 100 . . . Volleys Fired 173 | . 4 36 89 44 Largest 3 | . 2 3 3 3 Hottest 124 | . 60 93 76 124 Shots Fired 268 | . 7 61 145 55 Gun 177 | . 7 56 90 24 Cannon 62 | . . . 39 23 Launcher 29 | . . 5 16 8 Special . | . . . . . Kinetic 143 | . 4 33 99 7 Thermal 90 | . 3 23 30 34 Explosive . | . . . . . Electromagnetic 35 | . . 5 16 14 Robot Hit Streak 28 | . 3 28 13 8 Robot Miss Streak 3 | . 1 3 3 2 Penetration Max . | . . . . . Secondary Targets 4 | . . 3 . 1 Max Gunslinging Chain 1 | . . 1 . 1 Shots Hit Robots 173 | . 5 49 88 31 Core Hits 103 | . 2 24 65 12 Critical Kills 1 | . . . 1 . Critical Parts Destroyed . | . . . . . Critical Strikes 1 | . . . 1 . Destroy 1 | . . . 1 . Melee Attacks . | . . . . . Impact . | . . . . . Slashing . | . . . . . Piercing . | . . . . . Sneak Attacks . | . . . . . Combat Hostiles . | . . . . . Follow-up Attacks . | . . . . . Damage Inflicted 4534 | . 61 749 2809 915 Guns 1772 | . 61 532 898 281 Cannons 517 | . . . 310 207 Explosions 2222 | . . 209 1586 427 Melee . | . . . . . Ramming 23 | . . 8 15 . Kinetic 1386 | . 38 311 925 112 Thermal 1577 | . 23 221 873 460 Explosive 229 | . . . 229 . Electromagnetic 1319 | . . 209 767 343 Impact . | . . . . . Slashing . | . . . . . Piercing . | . . . . . Highest Corruption 11 | . . . . 11 Average Corruption 11 | . . . . 11 Corruption Purged . | . . . . . Corruption Blocked . | . . . . . Effects 1 | . . . . 1 Matter Fused 1 | . . . . 1 Overload Shots . | . . . . . Overflow Damage 53 | . . 4 11 38 Projectiles . | . . . . . Explosions 53 | . . 4 11 38 Melee . | . . . . . Knockbacks 1 | . . . 1 . Impact . | . . . . . Kinetic 1 | . . . 1 . Secondary . | . . . . . Self-Inflicted Damage 130 | . . 35 48 47 Shots 10 | . . 5 4 1 Rammed . | . . . . . Targets Rammed 5 | . . 3 2 . Kicked 5 | . . 3 2 . Crushed . | . . . . . Highest Temperature 413 | . . 37 413 108 Average Temperature 35 | . . 12 41 34 Received Heat Transfer 540 | . . 174 276 90 Effects 2 | . . . 2 . Shutdowns 1 | . . . 1 . Energy Bleed 1 | . . . 1 . Siege Activations . | . . . . . Martial Activations . | . . . . . Shielding Activations . | . . . . . Robots Disrupted . | . . . . . Combat Hostiles . | . . . . . Robots Corrupted . | . . . . . Combat Hostiles . | . . . . . Parts Fried 3 | . . 1 . 2 Impact Corruptions . | . . . . . Robots Melted . | . . . . . Combat Hostiles . | . . . . . Parts Melted 5 | . . 1 2 2 Heat Transferred 2582 | . 50 500 1340 692 Parts Sabotaged . | . . . . . Parts Stolen . | . . . . . Parts Stripped . | . . . . . Power Chain Reactions 11 | . . . 9 2 Alert | -11 -10 -9 -9 -9 ------- Run | Yrd Mat Mat Sto Gar Maximum Alert Level 3 | . . . 3 3 Low Security (%) 49 | 100 100 100 15 . Level 1 3 | . . . 9 . Level 2 32 | . . . 42 86 Level 3 14 | . . . 33 13 Level 4 . | . . . . . Level 5 . | . . . . . High Security . | . . . . . Max Security . | . . . . . Peak Influence 855 | . . 162 784 855 Initial 497 | . . . 65 497 Average 331 | . . 25 546 637 Influence Increases 1908 | . 7 325 1173 403 Destroy 0b10 Robot/C 1060 | . . 220 660 180 Destroy 0b10 Robot/NC 100 | . 5 10 80 5 Destroy Leader 238 | . 2 54 172 10 Allied During Kill 48 | . . . 48 . Successful Hack 17 | . . 11 6 . Disable Machine 165 | . . . 135 30 Anti-Garrison Action 50 | . . . . 50 Destroy Structure 80 | . . . 72 8 Lose Combat Pursuer 150 | . . 30 . 120 Influence Decreases 1078 | . 7 171 561 339 Entered New Map 358 | . . . 89 269 Time Decay 570 | . 7 171 392 . Lost Part 110 | . . . 40 70 Lost Ally 40 | . . . 40 . Squads Dispatched 9 | . 1 1 7 . Investigation 1 | . . . 1 . Extermination . | . . . . . Reinforcement 4 | . 1 1 2 . Assault 3 | . . . 3 . Garrison 1 | . . . 1 . Intercept . | . . . . . Searches Triggered . | . . . . . Construction Impeded . | . . . . . Haulers Reinforced . | . . . . . Active Scanning Responses . | . . . . . Cargo Convoy Interrupts . | . . . . . Stealth | -11 -10 -9 -9 -9 --------- Run | Yrd Mat Mat Sto Gar Distress Signals 2 | . . . 2 . Communications Jammed . | . . . . . Distress Signals . | . . . . . Times Spotted 75 | . 2 17 40 16 Peak Tracking Total 14 | . 1 3 13 14 Tactical Retreats 3 | . . 1 . 2 Traps | -11 -10 -9 -9 -9 ------- Run | Yrd Mat Mat Sto Gar Traps Triggered 6 | . . . 3 3 Indirectly 3 | . . . 3 . Trap Hack Attempts . | . . . . . Triggered . | . . . . . Disarmed . | . . . . . Reprogrammed . | . . . . . Reused . | . . . . . Traps Extracted . | . . . . . Installed . | . . . . . Triggered . | . . . . . Most Traps Carried 3 | . . . . 3 Machines | -11 -10 -9 -9 -9 ---------- Run | Yrd Mat Mat Sto Gar Machines Disabled 12 | . . . 9 3 Max in Single Turn 2 | . . . 2 1 Garrison Relay 1 | . . . . 1 Machines Repaired . | . . . . . Machines Dismantled . | . . . . . Machines Sabotaged . | . . . . . Overloaded Fab Kills . | . . . . . Hacking | -11 -10 -9 -9 -9 --------- Run | Yrd Mat Mat Sto Gar Machines Accessed 8 | . 1 1 6 . Terminals 7 | . 1 1 5 . Fabricators . | . . . . . Repair Stations . | . . . . . Recycling Units . | . . . . . Scanalyzers . | . . . . . Garrison Access 1 | . . . 1 . Total Hacks 16 | . 1 3 12 . Successful 8 | . . 3 5 . Failed 8 | . 1 . 7 . Catastrophic 2 | . 1 . 1 . Database Lockouts . | . . . . . Manual 14 | . 1 3 10 . Terminals 15 | . 1 3 11 . Fabricators . | . . . . . Repair Stations . | . . . . . Recycling Units . | . . . . . Scanalyzers . | . . . . . Garrison Access 1 | . . . 1 . Terminal Hacks 1 | . . . 1 . Locate Traps 1 | . . . 1 . Fabricator Hacks . | . . . . . Repair Station Hacks . | . . . . . Recycling Unit Hacks . | . . . . . Scanalyzer . | . . . . . Garrison Access Hacks 1 | . . . 1 . Unlock Access 1 | . . . 1 . Unauthorized Hacks 6 | . . 3 3 . Terminals 6 | . . 3 3 . Track 2 | . . 1 1 . Assimilate 1 | . . 1 . . Botnet 3 | . . 1 2 . Fabricators . | . . . . . Repair Stations . | . . . . . Recycling Units . | . . . . . Scanalyzers . | . . . . . Garrison Access . | . . . . . Data Cores Recovered 1 | . . . 1 . Used . | . . . . . Hacking Detections 7 | . 1 1 5 . Full Trace Events 1 | . . . 1 . Feedback Events . | . . . . . Feedback Blocked . | . . . . . Robot Schematics Acquired . | . . . . . Robots Built . | . . . . . Authchips . | . . . . . Time . | . . . . . Total Robot Build Rating . | . . . . . Part Schematics Acquired . | . . . . . Parts Built . | . . . . . Authchips . | . . . . . Time . | . . . . . Total Part Build Rating . | . . . . . Part Studies Acquired . | . . . . . Parts Repaired . | . . . . . Time . | . . . . . Parts Recycled . | . . . . . Recycled Matter . | . . . . . Retrieved Matter . | . . . . . Retrieved Components . | . . . . . Parts Scanalyzed . | . . . . . Part Schematics Acquired . | . . . . . Parts Damaged . | . . . . . Bothacking | -11 -10 -9 -9 -9 ------------ Run | Yrd Mat Mat Sto Gar Used RIF Installer . | . . . . . Robots Hacked . | . . . . . Non-combat . | . . . . . Combat . | . . . . . Robot Hacks Applied . | . . . . . Relay Couplers Released 5 | . . . . 5 Machine Destruction 5 | . . . . 5 Fabnet Peak Effective % . | . . . . . Robots Rewired . | . . . . . Allies Hacked . | . . . . . Hacks Repelled . | . . . . . Allies | -11 -10 -9 -9 -9 -------- Run | Yrd Mat Mat Sto Gar Total Allies 2 | . . . 2 . Largest Group 2 | . . . 2 . Highest-Rated Group 62 | . . . 62 . Highest-Rated Ally 31 | . . . 31 . Total Orders . | . . . . . Ally Attacks 35 | . . . 35 . Total Damage 469 | . . . 469 . Kills 7 | . . . 7 . Allies Corrupted . | . . . . . Allies Melted . | . . . . . Intel | -11 -10 -9 -9 -9 ------- Run | Yrd Mat Mat Sto Gar Active Infowar (turns) 2231 | . . 799 929 503 Optics 2231 | . . 799 929 503 Robot Analysis Total . | . . . . . Derelict Logs Recovered . | . . . . . Drone Launches . | . . . . . Drone Recoveries . | . . . . . Exploration | -11 -10 -9 -9 -9 ------------- Run | Yrd Mat Mat Sto Gar Turns Passed 2608 | 83 267 799 929 530 Spaces Moved 1427 | 67 196 340 530 294 Core 69 | 15 . . . 54 Treads . | . . . . . Legs 1358 | 52 196 340 530 240 Wheels . | . . . . . Hover . | . . . . . Flight . | . . . . . Fastest Speed 50 | 50 120 120 120 50 Average Speed 116 | 104 120 120 120 108 Slowest Speed 190 | 120 120 120 120 190 Overloaded Moves . | . . . . . Propulsion Burnouts . | . . . . . Robots Hopped . | . . . . . Potential Cave-ins . | . . . . . Cave-ins Triggered . | . . . . . Exploration Rate (%) 34 | 4 30 22 80 38 Regions Visited 4 Branch Regions 1 Pre-discovered Areas . | . . . . . Known Exits Taken 1 | . . . 1 . Unknown Exits Taken 3 | 1 1 1 . . Scrap Searched . | . . . . . Spaces Dug . | . . . . . Terrain Destroyed 72 | . . . 68 4 Melee . | . . . . . Projectile . | . . . . . AOE 72 | . . . 68 4 Terrain Rammed . | . . . . . Walls Destroyed . | . . . . . Machines Disabled . | . . . . . Actions | -11 -10 -9 -9 -9 --------- Run | Yrd Mat Mat Sto Gar Total 2115 | 80 222 671 687 455 Wait 419 | 1 13 287 31 87 Move 1423 | 66 195 339 529 294 Hop . | . . . . . Pick Up 30 | 9 5 3 8 5 Fast Attach 5 | . . . 5 . Attach 17 | 4 3 2 5 3 Detach 1 | . . . 1 . Swap 10 | . . . 7 3 Drop 22 | . 2 1 10 9 Fire 173 | . 4 36 89 44 Melee . | . . . . . Ram . | . . . . . Kick 5 | . . 3 2 . Crush . | . . . . . Escape Stasis 10 | . . . . 10 Rewire . | . . . . . Trap . | . . . . . Miscellaneous . | . . . . . Route ------- -11/Scrapyard -10/Materials -9/Materials -9/Storage (discovered 2 exits: [*Mat] / Gar) -9/Garrison History --------- Turn | Location | Event 8 | -11/Scrapyard | Discovered new exit (range 15) 84 | -11/Scrapyard | Entered Materials 332 | -10/Materials | Discovered new exit (range 10) 334 | -10/Materials | Build established: Mutant 351 | -10/Materials | Entered another Materials area 351 | -9/Materials | Evolved 2 slots: Utility x1, Weapon x1 638 | -9/Materials | Build established: Gunner 1005 | -9/Materials | Discovered new exit (range 18) 1150 | -9/Materials | Entered Storage 1185 | -9/Storage | Garrison activated, responded to threat 1320 | -9/Storage | Met a pair of Derelict thieves 1394 | -9/Storage | Destroyed 9 combat bots 1489 | -9/Storage | Discovered new exit (range 13) 1950 | -9/Storage | First assault squad dispatched 2078 | -9/Storage | Identified exit to Garrison 2079 | -9/Storage | Entered Garrison 2100 | -9/Garrison | Build established: Bomber 2165 | -9/Garrison | Core integrity fell below 50% 2188 | -9/Garrison | Triggered checkpoint 2241 | -9/Garrison | Garrison Relay disabled 2251 | -9/Garrison | Triggered checkpoint 2451 | -9/Garrison | Triggered checkpoint 2580 | -9/Garrison | Core integrity fell below 20% 2580 | -9/Garrison | System corruption reached 10% 2609 | -9/Garrison | Destroyed by S-10 Pest with Light Assault Rifle Last Messages --------------- 02545_ Imp. Aluminum Leg destroyed. 02549_ Dropped Tiamat Bomb Trap. 02563_ S-10 Pest destroyed. 02571_ Imp. Medium Laser destroyed. 02576_ Cld. Ion Engine severed. 02576_ Chain reaction triggered in Imp. Ion Engine. 02576_ L-31 Rogue destroyed. 02576_ Destroyed Flight Unit. 02576_ S-10 Pest destroyed. 02579_ Imp. Targeting Computer destroyed. 02579_ Imp. EM Shotgun destroyed. 02579_ Imp. Assault Rifle destroyed. 02579_ System corrupted by crushing effect (+2). 02579_ System corrupted by crushing effect (+5). 02579_ System corrupted by crushing effect (+4). 02579_ Dropped Tiamat Bomb Trap. 02582_ Aluminum Leg destroyed. 02582_ Discarded Visual Processing Unit. 02594_ System corrupted: Matter fused (-6). Map ----- +----------------------------------------------------+ | ?????????????????????????????????????????????????? | | ?????????????????????????????????????????????????? | | ?????????????????????????????????????????????????? | | ?????????????????????????????????????????????????? | | ?????????????????????????????????????????????????? | | ?????????????????????????????????????????????????? | | ?????????????????????????????????????????????????? | | ?????????????????????????????????????????????????? | | ?????????????????????????????????????????????????? | | ?????????????????????????????????????????????????? | | ?????????????????????????????????????????????????? | | ?????????????????????????????????????????????????? | | ?????????????????????????????????????????????????? | | ?????????????????????????????????????????????????? | | ?????????????????????????????????????????????????? | | ?????????????????????????????????????????????????? | | ?????????????????????????????????????????????????? | | ?????????????????????????????????????????????????? | | ?????????????????????????????????????????????????? | | ?????????????????????????????????????????????????? | | ?????????????????????????????????????????????????? | | ?????????????????????????????????????????????????? | | ?????????????????????????????#???????????????????? | | ???????????????????????????? #???????????????????? | | ?????###################### #???????????????????? | | ?????# @ #???????????????????? | | ?????# #???????????????????? | | ?????# ######################???????????????????? | | ?????# #????????????????????????????????????????? | | ?????# #????????????????????????????????????????? | | ?????# #????????????????????????????????????????? | | ?????# #????????????????????????????????????????? | | ###### #????????????????????????????????????????? | | ## #????????????????????????????????????????? | | ## ##???????????????????????????????????????? | | #???????????????????????????????????????? | | #???????????????????????????????????????? | | #???????????????????????????????????????? | | ^ ^## #???????????????????????????????????????? | | ## #???????????????????????????????????????? | | "???????????????????????????????????????? | | "???????????????????????????????????????? | | = "???????????????????????????????????????? | | %[ "???????????????????????????????????????? | | ##* #???????????????????????????????????????? | | #? #???????????????????????????????????????? | | ???????????????????????????????????????? | | ??????????????????????????????????????? | | ##??????????????????????????????????????? | | """"## ##???????????????????????????????????????? | +----------------------------------------------------+ Best States ------------- Heat Dissipation 28 Energy Generation 14 Energy Capacity 280 Matter Stores 300 Matter Capacity 300 Sight Range 18 Terrain Scan Density 10 Evasion (%) 55 Targeting Accuracy 12 Item Schematics ----------------- None Robot Schematics ------------------ None Fabricated ------------ Nothing Repaired ---------- Nothing Studied --------- None Alien Tech Used ----------------- None Achievements -------------- DATA ERROR: Steam Global Achievement% For Emergencies Only I Have A Map? Organ Harvest Spot Them First There's More Where That Came From Challenges ------------ None Game ------ Seed MicroCommBallwheel Manual? 0 Play Time 00:36:55 Cumulative 33.1 hours Start 2025.10.24 @ 18:40:38 End 2025.10.24 @ 19:17:33 Sessions 1 Manual Loads 0 Difficulty Rogue Special Mode None Game No. 28 Rogue 16 Adventurer 1 Explorer 11 Win Type - Total 2 Types 1/0/1/0/0/0/0/0/0/0 Lore% 11 Gallery% 27 Achievement% 32 Wizard Run 0 Options --------- Layout 1 ASCII 0 Keyboard 0 Movement Numpad Keybinds 0 Fullscreen 1 Font 24/Smallcaps Map View 50x35 Zoom Use 0% Tactical HUD 1 Map Filters NONE Filters NONE Steam 1 RUN: 7b9ed94a-c4e4-4ffa-9089-dec83ede52b9